fUST/lending_fUST_20250514
["ID","MTS","AMOUNT","RATE_DAILY","PERIOD"]
[361024644,1747209043971,-151.0,0.00016438,2]
[361024646,1747209043980,-301.224936,0.00016438,2]
[361024648,1747209043990,-241.68,0.00016438,2]
[361024650,1747209043999,-562.2414343,0.00016438,2]
[361024652,1747209044009,-151.0,0.00016438,2]
[361024654,1747209044019,-151.0,0.00016438,2]
[361024656,1747209044029,-151.0,0.00016438,2]
[361024658,1747209044039,-151.0,0.00016438,2]
[361024660,1747209044048,-151.0,0.00016438,2]
[361024662,1747209044057,-151.0,0.00016438,2]
[361024664,1747209044067,-151.0,0.00016438,2]
[361024666,1747209044076,-151.0,0.00016438,2]
[361024668,1747209044086,-151.0,0.00016438,2]
[361024670,1747209044095,-158.785282,0.00016438,2]
[361024672,1747209044105,-1319.693685,0.00016438,2]
[361024674,1747209044115,-1319.693685,0.00016438,2]
[361024676,1747209044124,-1319.693685,0.00016438,2]
[361024678,1747209044134,-1319.693685,0.00016438,2]
[361024680,1747209044144,-1319.693685,0.00016438,2]
[361024682,1747209044153,-1319.693685,0.00016438,2]
[361024684,1747209044163,-1319.693685,0.00016438,2]
[361024686,1747209044172,-1319.693685,0.00016438,2]
[361024688,1747209044182,-1319.693685,0.00016438,2]
[361024690,1747209044193,-1319.693685,0.00016438,2]
[361024692,1747209044202,-1319.693685,0.00016438,2]
[361024694,1747209044212,-1319.693685,0.00016438,2]
[361024696,1747209044221,-1319.693685,0.00016438,2]
[361024698,1747209044230,-143.529015,0.00016438,2]
[361024770,1747209046674,-400.0,0.00013698,2]
[361024771,1747209046683,-400.0,0.00013972,2]
[361024772,1747209046694,-400.0,0.00014246,2]
[361024773,1747209046704,-400.0,0.0001452,2]
[361024774,1747209046714,-400.0,0.00014794,2]
[361024775,1747209046723,-1176.16467,0.00016438,2]
[361024776,1747209046732,-1319.693685,0.00016438,2]
[361024777,1747209046741,-1319.693685,0.00016438,2]
[361024778,1747209046750,-783.55349006,0.00016438,2]
[361024779,1747209046766,-536.14019494,0.00016438,2]
[361024780,1747209046775,-1319.693685,0.00016438,2]
[361024781,1747209046785,-1319.693685,0.00016438,2]
[361024782,1747209046795,-1319.693686,0.00016438,2]
[361024783,1747209046803,-158.449577,0.00016438,2]
[361024784,1747209046813,-724.09301,0.00016438,2]
[361024785,1747209046822,-724.09301,0.00016438,2]
[361024786,1747209046831,-724.09301,0.00016438,2]
[361024787,1747209046841,-724.09301,0.00016438,2]
[361024788,1747209046850,-724.09301,0.00016438,2]
[361024789,1747209046859,-724.09301,0.00016438,2]
[361024790,1747209046868,-339.27111218,0.00016438,2]
[361024791,1747209046880,-384.82189782,0.00016438,2]
[361024792,1747209046889,-724.09301,0.00016438,2]
[361024794,1747209046898,-724.09301,0.00016438,2]
[361024796,1747209046908,-724.09301,0.00016438,2]
[361024798,1747209046917,-724.09301,0.00016438,2]
[361024799,1747209046926,-724.09301,0.00016438,2]
[361024800,1747209046935,-724.09301,0.00016438,2]
[361024801,1747209046944,-724.09301,0.00016438,2]
[361024802,1747209046953,-724.09301,0.00016438,2]
[361024803,1747209046962,-724.09301,0.00016438,2]
[361024804,1747209046972,-724.09301,0.00016438,2]
[361024805,1747209046980,-724.09301,0.00016438,2]
[361024806,1747209046990,-724.09301,0.00016438,2]
[361024807,1747209047000,-724.09301,0.00016438,2]
[361024808,1747209047009,-500.0,0.00016438,2]
[361024809,1747209047019,-250.06803888,0.00016438,2]
[361024810,1747209047029,-188.0,0.000165,3]
[361024811,1747209047038,-199.0,0.000165,3]
[361024812,1747209047047,-151.0,0.000166,2]
[361024813,1747209047056,-151.0,0.000167,2]
[361024814,1747209047066,-151.0,0.000167,2]
[361024815,1747209047075,-400.0,0.00016712,2]
[361024816,1747209047086,-400.0,0.00016712,2]
[361024817,1747209047096,-400.0,0.00016712,2]
[361024818,1747209047107,-400.0,0.00016712,2]
[361024819,1747209047116,-3957.16,0.00016712,2]
[361024820,1747209047126,-927.72,0.00016712,2]
[361024821,1747209047135,-400.0,0.00016712,2]
[361024822,1747209047145,-400.0,0.00016712,2]
[361024823,1747209047153,-357.3,0.00016712,2]
[361024824,1747209047162,-230.01547875,0.00016712,2]
[361040101,1747210232900,-5000.0,0.0001199,2]
[361040103,1747210232911,-300.0,0.0001223,2]
[361040105,1747210232922,-300.0,0.0001223,2]
[361040107,1747210232933,-300.0,0.00012231,2]
[361040109,1747210232943,-1200.0,0.00012231,2]
[361040110,1747210232954,-300.0,0.00012231,2]
[361040111,1747210232964,-300.0,0.00012231,2]
[361040113,1747210232974,-500.0,0.00012232,2]
[361040115,1747210232984,-500.0,0.00012232,2]
[361040117,1747210232994,-500.0,0.00012232,2]
[361040119,1747210233004,-500.0,0.00012232,2]
[361040121,1747210233015,-328.29331157,0.00012232,2]
[361040123,1747210233025,-500.0,0.00012232,2]
[361040125,1747210233035,-500.0,0.00012232,2]
[361040127,1747210233045,-500.0,0.00012232,2]
[361040129,1747210233055,-547.83088736,0.00012232,2]
[361040131,1747210233065,-500.0,0.00012232,2]
[361040133,1747210233075,-500.0,0.00012232,2]
[361040135,1747210233086,-500.0,0.00012232,2]
[361040137,1747210233097,-500.0,0.00012232,2]
[361040139,1747210233107,-500.0,0.00012232,2]
[361040140,1747210233120,-349.96462291,0.00012232,2]
[361040141,1747210233131,-500.0,0.00012232,2]
[361040142,1747210233142,-500.0,0.00012232,2]
[361040143,1747210233152,-563.5667068,0.00012232,2]
[361040144,1747210233162,-500.0,0.00012232,2]
[361040145,1747210233172,-500.0,0.00012232,2]
[361040146,1747210233182,-500.0,0.00012232,2]
[361040147,1747210233192,-500.0,0.00012232,2]
[361040148,1747210233202,-194.49791817,0.00012232,2]
[361040149,1747210233212,-500.0,0.00012232,2]
[361040150,1747210233223,-500.0,0.00012232,2]
[361040151,1747210233232,-500.0,0.00012232,2]
[361040152,1747210233243,-500.0,0.00012232,2]
[361040153,1747210233253,-500.0,0.00012232,2]
[361040154,1747210233263,-500.0,0.00012232,2]
[361040155,1747210233274,-500.0,0.00012232,2]
[361040156,1747210233283,-357.83477495,0.00012232,2]
[361040157,1747210233293,-3029.9679111,0.00012234,2]
[361040158,1747210233303,-856.54739685,0.00012248,2]
[361040159,1747210233314,-639.0554868,0.0001235,2]
[361040160,1747210233324,-164.8780326,0.00012389,2]
[361040161,1747210233334,-7096.96413709,0.000129,2]
[361040162,1747210233344,-476.93235263,0.00012977,2]
[361040163,1747210233353,-4542.48432341,0.00013,2]
[361040164,1747210233367,-781.24024026,0.00013077,2]
[361040165,1747210233377,-197.5245324,0.00013177,2]
[361040166,1747210233387,-7096.96413682,0.00013417,2]
[361040167,1747210233397,-300.0,0.00013423,2]
[361040168,1747210233407,-300.0,0.00013423,2]
[361040169,1747210233416,-420.0,0.00013424,2]
[361040170,1747210233426,-300.0,0.00013424,2]
[361040171,1747210233435,-300.0,0.00013424,2]
[361040172,1747210233444,-1200.0,0.00013454,2]
[361040173,1747210233453,-151.37098876,0.00013575,2]
[361040174,1747210233462,-207.4,0.00013575,2]
[361040175,1747210233470,-156.95,0.00013698,2]
[361040176,1747210233480,-1327.63,0.00013698,2]
[361040177,1747210233490,-400.0,0.00013698,2]
[361040178,1747210233497,-400.0,0.00013698,2]
[361040179,1747210233504,-400.0,0.00013698,2]
[361040180,1747210233512,-400.0,0.00013698,2]
[361040181,1747210233521,-311.9678264,0.00013698,2]
[361040182,1747210233531,-1152.21,0.00013698,2]
[361040183,1747210233541,-400.0,0.00013698,2]
[361040184,1747210233551,-400.0,0.00013698,2]
[361040185,1747210233561,-467.21,0.00013698,2]
[361040186,1747210233570,-451.16714129,0.00013698,2]
[361040187,1747210233580,-463.86,0.00013698,2]
[361040188,1747210233589,-400.0,0.00013698,2]
[361040189,1747210233599,-285.24517406,0.00013698,2]
[361040190,1747210233612,-400.0,0.00013698,2]
[361040191,1747210233622,-400.0,0.00013698,2]
[361040192,1747210233632,-400.0,0.00013698,2]
[361040193,1747210233642,-626.17,0.00013698,2]
[361040194,1747210233652,-400.0,0.00013698,2]
[361040195,1747210233661,-400.0,0.00013698,2]
[361040196,1747210233671,-400.0,0.00013698,2]
[361040197,1747210233681,-400.0,0.00013698,2]
[361040198,1747210233690,-400.0,0.00013698,2]
[361040199,1747210233699,-1989.37,0.00013698,2]
[361040200,1747210233709,-400.0,0.00013698,2]
[361040201,1747210233719,-400.0,0.00013698,2]
[361040202,1747210233730,-400.0,0.00013698,2]
[361040203,1747210233740,-400.0,0.00013698,2]
[361040204,1747210233752,-400.0,0.00013698,2]
[361040205,1747210233763,-1978.58,0.00013698,2]
[361040206,1747210233775,-400.0,0.00013698,2]
[361040207,1747210233785,-400.0,0.00013698,2]
[361040208,1747210233797,-618.56,0.00013698,2]
[361040209,1747210233807,-400.0,0.00013698,2]
[361040210,1747210233817,-400.0,0.00013698,2]
[361040211,1747210233827,-631.633644,0.00013699,2]
[361040212,1747210233838,-500.0,0.00013699,2]
[361040213,1747210233849,-500.0,0.00013699,2]
[361040214,1747210233862,-500.0,0.00013699,2]
[361040215,1747210233872,-500.0,0.00013699,2]
[361040216,1747210233886,-500.0,0.00013699,2]
[361040217,1747210233896,-500.0,0.00013699,2]
[361040218,1747210233906,-500.0,0.00013699,2]
[361040219,1747210233917,-500.0,0.00013699,2]
[361040220,1747210233927,-500.0,0.00013699,2]
[361040221,1747210233938,-500.0,0.00013699,2]
[361040222,1747210233949,-500.0,0.00013699,2]
[361040223,1747210233959,-500.0,0.00013699,2]
[361040224,1747210233970,-290.19485282,0.00013699,2]
[361040225,1747210233980,-500.0,0.00013699,2]
[361040226,1747210233990,-500.0,0.00013699,2]
[361040227,1747210234001,-500.0,0.00013699,2]
[361040228,1747210234011,-500.0,0.00013699,2]
[361040229,1747210234021,-500.0,0.00013699,2]
[361040230,1747210234031,-500.0,0.00013699,2]
[361040231,1747210234042,-7096.96413682,0.00013934,2]
[361040232,1747210234052,-1327.63,0.00013972,2]
[361040233,1747210234064,-400.0,0.00013972,2]
[361040234,1747210234075,-400.0,0.00013972,2]
[361040235,1747210234087,-400.0,0.00013972,2]
[361040236,1747210234097,-400.0,0.00013972,2]
[361040237,1747210234107,-1152.21,0.00013972,2]
[361040238,1747210234120,-400.0,0.00013972,2]
[361040239,1747210234131,-400.0,0.00013972,2]
[361040240,1747210234141,-467.21,0.00013972,2]
[361040241,1747210234152,-463.86,0.00013972,2]
[361040242,1747210234161,-400.0,0.00013972,2]
[361040243,1747210234171,-400.0,0.00013972,2]
[361040244,1747210234181,-542.93,0.00013972,2]
[361040245,1747210234190,-400.0,0.00013972,2]
[361040246,1747210234199,-626.17,0.00013972,2]
[361040247,1747210234209,-400.0,0.00013972,2]
[361040248,1747210234218,-400.0,0.00013972,2]
[361040249,1747210234228,-400.0,0.00013972,2]
[361040250,1747210234238,-400.0,0.00013972,2]
[361040251,1747210234249,-400.0,0.00013972,2]
[361040252,1747210234259,-1989.37,0.00013972,2]
[361040253,1747210234269,-400.0,0.00013972,2]
[361040254,1747210234279,-400.0,0.00013972,2]
[361040255,1747210234288,-400.0,0.00013972,2]
[361040256,1747210234298,-400.0,0.00013972,2]
[361040257,1747210234307,-400.0,0.00013972,2]
[361040258,1747210234317,-1978.58,0.00013972,2]
[361040259,1747210234326,-400.0,0.00013972,2]
[361040260,1747210234335,-442.33,0.00013972,2]
[361040261,1747210234345,-618.56,0.00013972,2]
[361040262,1747210234356,-400.0,0.00013972,2]
[361040263,1747210234372,-298.41,0.00014,2]
[361040264,1747210234382,-1327.63,0.00014246,2]
[361040265,1747210234392,-400.0,0.00014246,2]
[361040266,1747210234402,-400.0,0.00014246,2]
[361040267,1747210234573,-400.0,0.00014246,2]
[361040268,1747210234583,-400.0,0.00014246,2]
[361040269,1747210234593,-1152.21,0.00014246,2]
[361040270,1747210234603,-400.0,0.00014246,2]
[361040271,1747210234618,-400.0,0.00014246,2]
[361040272,1747210234631,-467.21,0.00014246,2]
[361040273,1747210234643,-463.86,0.00014246,2]
[361040274,1747210234652,-400.0,0.00014246,2]
[361040275,1747210234662,-400.0,0.00014246,2]
[361040276,1747210234673,-400.0,0.00014246,2]
[361040277,1747210234683,-626.17,0.00014246,2]
[361040278,1747210234693,-400.0,0.00014246,2]
[361040279,1747210234703,-400.0,0.00014246,2]
[361040280,1747210234713,-400.0,0.00014246,2]
[361040281,1747210234723,-400.0,0.00014246,2]
[361040282,1747210234733,-400.0,0.00014246,2]
[361040283,1747210234742,-1989.37,0.00014246,2]
[361040284,1747210234756,-400.0,0.00014246,2]
[361040285,1747210234765,-400.0,0.00014246,2]
[361040286,1747210234777,-400.0,0.00014246,2]
[361040287,1747210234787,-400.0,0.00014246,2]
[361040288,1747210234797,-400.0,0.00014246,2]
[361040289,1747210234807,-1978.58,0.00014246,2]
[361040290,1747210234816,-400.0,0.00014246,2]
[361040291,1747210234828,-618.56,0.00014246,2]
[361040292,1747210234838,-400.0,0.00014246,2]
[361040293,1747210234848,-562.6,0.0001442,2]
[361040294,1747210234861,-404.0,0.0001442,2]
[361040295,1747210234871,-7096.96413682,0.00014452,2]
[361040296,1747210234882,-1327.63,0.0001452,2]
[361040297,1747210234891,-400.0,0.0001452,2]
[361040298,1747210234901,-400.0,0.0001452,2]
[361040299,1747210234911,-400.0,0.0001452,2]
[361040300,1747210234920,-400.0,0.0001452,2]
[361040301,1747210234930,-1152.21,0.0001452,2]
[361040302,1747210234940,-400.0,0.0001452,2]
[361040303,1747210234950,-400.0,0.0001452,2]
[361040304,1747210234959,-467.21,0.0001452,2]
[361040305,1747210234969,-463.86,0.0001452,2]
[361040306,1747210234979,-400.0,0.0001452,2]
[361040307,1747210234988,-400.0,0.0001452,2]
[361040308,1747210234998,-400.0,0.0001452,2]
[361040309,1747210235009,-626.17,0.0001452,2]
[361040310,1747210235018,-400.0,0.0001452,2]
[361040311,1747210235028,-178.51,0.0001452,2]
[361040312,1747210235038,-400.0,0.0001452,2]
[361040313,1747210235047,-400.0,0.0001452,2]
[361040314,1747210235057,-400.0,0.0001452,2]
[361040315,1747210235066,-1989.37,0.0001452,2]
[361040316,1747210235077,-400.0,0.0001452,2]
[361040317,1747210235087,-400.0,0.0001452,2]
[361040318,1747210235098,-400.0,0.0001452,2]
[361040319,1747210235108,-400.0,0.0001452,2]
[361040320,1747210235123,-400.0,0.0001452,2]
[361040321,1747210235134,-1978.58,0.0001452,2]
[361040322,1747210235144,-466.01,0.0001452,2]
[361040323,1747210235155,-618.56,0.0001452,2]
[361040324,1747210235165,-400.0,0.0001452,2]
[361040325,1747210235175,-587.0,0.00014733,2]
[361040326,1747210235186,-1327.63,0.00014794,2]
[361040327,1747210235196,-400.0,0.00014794,2]
[361040328,1747210235206,-400.0,0.00014794,2]
[361040329,1747210235217,-400.0,0.00014794,2]
[361040330,1747210235228,-400.0,0.00014794,2]
[361040331,1747210235238,-1152.21,0.00014794,2]
[361040332,1747210235248,-400.0,0.00014794,2]
[361040333,1747210235258,-400.0,0.00014794,2]
[361040334,1747210235269,-467.21,0.00014794,2]
[361040335,1747210235280,-463.86,0.00014794,2]
[361040336,1747210235290,-185.44,0.00014794,2]
[361040337,1747210235300,-400.0,0.00014794,2]
[361040338,1747210235310,-400.0,0.00014794,2]
[361040339,1747210235320,-626.17,0.00014794,2]
[361040340,1747210235330,-400.0,0.00014794,2]
[361040341,1747210235341,-400.0,0.00014794,2]
[361040342,1747210235351,-400.0,0.00014794,2]
[361040343,1747210235363,-400.0,0.00014794,2]
[361040344,1747210235374,-1989.37,0.00014794,2]
[361040345,1747210235384,-400.0,0.00014794,2]
[361040346,1747210235394,-370.03,0.00014794,2]
[361040347,1747210235404,-400.0,0.00014794,2]
[361040348,1747210235413,-325.58,0.00014794,2]
[361040349,1747210235423,-400.0,0.00014794,2]
[361040350,1747210235433,-1978.58,0.00014794,2]
[361040351,1747210235443,-618.56,0.00014794,2]
[361040352,1747210235452,-400.0,0.00014794,2]
[361040353,1747210235462,-362.919736,0.00014849,2]
[361040354,1747210235472,-500.0,0.00014923,2]
[361040355,1747210235483,-500.0,0.00014923,2]
[361040356,1747210235493,-500.0,0.00014923,2]
[361040357,1747210235502,-500.0,0.00014923,2]
[361040358,1747210235512,-215.0738,0.00014944,2]
[361040359,1747210235522,-7096.96413682,0.00014969,2]
[361040360,1747210235532,-500.0,0.00015,2]
[361040361,1747210235543,-500.0,0.00015,2]
[361040362,1747210235554,-500.0,0.00015,2]
[361040363,1747210235563,-500.77207929,0.00015,2]
[361040364,1747210235573,-500.0,0.00015,2]
[361040365,1747210235584,-476.93235258,0.00015041,2]
[361040366,1747210235594,-1327.63,0.00015068,2]
[361040367,1747210235603,-400.0,0.00015068,2]
[361040368,1747210235617,-400.0,0.00015068,2]
[361040369,1747210235627,-400.0,0.00015068,2]
[361040370,1747210235637,-400.0,0.00015068,2]
[361040371,1747210235647,-1152.21,0.00015068,2]
[361040372,1747210235657,-400.0,0.00015068,2]
[361040373,1747210235667,-400.0,0.00015068,2]
[361040374,1747210235677,-467.21,0.00015068,2]
[361040375,1747210235687,-463.86,0.00015068,2]
[361040376,1747210235696,-400.0,0.00015068,2]
[361040377,1747210235705,-400.0,0.00015068,2]
[361040378,1747210235715,-626.17,0.00015068,2]
[361040379,1747210235725,-400.0,0.00015068,2]
[361040380,1747210235735,-400.0,0.00015068,2]
[361040381,1747210235746,-400.0,0.00015068,2]
[361040382,1747210235759,-400.0,0.00015068,2]
[361040383,1747210235769,-1989.37,0.00015068,2]
[361040384,1747210235779,-400.0,0.00015068,2]
[361040385,1747210235790,-400.0,0.00015068,2]
[361040386,1747210235800,-400.0,0.00015068,2]
[361040387,1747210235811,-1978.58,0.00015068,2]
[361040388,1747210235821,-618.56,0.00015068,2]
[361040389,1747210235831,-400.0,0.00015068,2]
[361040390,1747210235842,-997.9747837,0.00015158,2]
[361040391,1747210235852,-422.27619506,0.00015158,2]
[361040392,1747210235865,-160.0,0.00015158,2]
[361040393,1747210235875,-160.0,0.00015158,2]
[361040394,1747210235885,-212.21045333,0.00015158,2]
[361040395,1747210235894,-160.0,0.00015158,2]
[361040396,1747210235904,-160.0,0.00015158,2]
[361040397,1747210235914,-160.0,0.00015158,2]
[361040398,1747210235924,-160.0,0.00015158,2]
[361040399,1747210235934,-12627.42419379,0.00015158,2]
[361040400,1747210235944,-160.0,0.00015158,2]
[361040401,1747210235954,-500.0,0.00015208,2]
[361040402,1747210235964,-232.25249931,0.00015267,2]
[361040403,1747210235974,-474.419,0.00015332,2]
[361040404,1747210235983,-161.1798183,0.00015342,2]
[361040405,1747210235993,-1327.63,0.00015342,2]
[361040406,1747210236002,-400.0,0.00015342,2]
[361040407,1747210236012,-400.0,0.00015342,2]
[361040408,1747210236022,-400.0,0.00015342,2]
[361040409,1747210236031,-400.0,0.00015342,2]
[361040410,1747210236041,-1152.21,0.00015342,2]
[361040411,1747210236051,-400.0,0.00015342,2]
[361040412,1747210236061,-400.0,0.00015342,2]
[361040413,1747210236071,-467.21,0.00015342,2]
[361040414,1747210236081,-463.86,0.00015342,2]
[361040415,1747210236091,-400.0,0.00015342,2]
[361040416,1747210236102,-400.0,0.00015342,2]
[361040417,1747210236113,-626.17,0.00015342,2]
[361040418,1747210236123,-400.0,0.00015342,2]
[361040419,1747210236133,-400.0,0.00015342,2]
[361040420,1747210236143,-400.0,0.00015342,2]
[361040421,1747210236154,-400.0,0.00015342,2]
[361040422,1747210236164,-1989.37,0.00015342,2]
[361040423,1747210236175,-400.0,0.00015342,2]
[361040424,1747210236184,-400.0,0.00015342,2]
[361040425,1747210236196,-400.0,0.00015342,2]
[361040426,1747210236207,-1978.58,0.00015342,2]
[361040427,1747210236218,-618.56,0.00015342,2]
[361040428,1747210236229,-400.0,0.00015342,2]
[361040429,1747210236241,-412.64203253,0.00015443,2]
[361040430,1747210236251,-500.0,0.00015443,2]
[361040431,1747210236262,-738.91950663,0.00015471,2]
[361040432,1747210236274,-1000.0,0.00015471,2]
[361040433,1747210236284,-1000.0,0.00015471,2]
[361040434,1747210236295,-7096.96413682,0.00015486,2]
[361040435,1747210236305,-1041.43766454,0.00015548,2]
[361040436,1747210236315,-1000.0,0.00015548,2]
[361040437,1747210236326,-1327.63,0.00015616,2]
[361040438,1747210236337,-400.0,0.00015616,2]
[361040439,1747210236347,-400.0,0.00015616,2]
[361040440,1747210236356,-400.0,0.00015616,2]
[361040441,1747210236376,-532.86,0.00015616,2]
[361040442,1747210236388,-1152.21,0.00015616,2]
[361040443,1747210236399,-400.0,0.00015616,2]
[361040444,1747210236410,-214.59,0.00015616,2]
[361040445,1747210236420,-467.21,0.00015616,2]
[361040446,1747210236430,-463.86,0.00015616,2]
[361040447,1747210236441,-400.0,0.00015616,2]
[361040448,1747210236450,-400.0,0.00015616,2]
[361040449,1747210236460,-626.17,0.00015616,2]
[361040450,1747210236470,-400.0,0.00015616,2]
[361040451,1747210236480,-400.0,0.00015616,2]
[361040452,1747210236490,-400.0,0.00015616,2]
[361040453,1747210236500,-400.0,0.00015616,2]
[361040454,1747210236510,-1989.37,0.00015616,2]
[361040455,1747210236519,-400.0,0.00015616,2]
[361040456,1747210236529,-400.0,0.00015616,2]
[361040457,1747210236538,-400.0,0.00015616,2]
[361040458,1747210236548,-1978.58,0.00015616,2]
[361040459,1747210236558,-618.56,0.00015616,2]
[361040460,1747210236567,-413.87,0.00015616,2]
[361040461,1747210236577,-1000.0,0.00015756,2]
[361040462,1747210236586,-368.9684192,0.00015836,2]
[361040463,1747210236595,-363.1221292,0.00015836,2]
[361040464,1747210236605,-363.1221292,0.00015836,2]
[361040465,1747210236620,-363.1221292,0.00015836,2]
[361040466,1747210236629,-363.1221292,0.00015836,2]
[361040467,1747210236639,-363.1221292,0.00015836,2]
[361040468,1747210236649,-363.1221292,0.00015836,2]
[361040469,1747210236658,-363.1221292,0.00015836,2]
[361040470,1747210236668,-363.1221292,0.00015836,2]
[361040471,1747210236677,-363.1221292,0.00015836,2]
[361040472,1747210236688,-363.1221292,0.00015836,2]
[361040473,1747210236698,-363.1221292,0.00015836,2]
[361040474,1747210236708,-363.1221292,0.00015836,2]
[361040475,1747210236717,-1327.63,0.0001589,2]
[361040476,1747210236727,-400.0,0.0001589,2]
[361040477,1747210236736,-400.0,0.0001589,2]
[361040478,1747210236746,-400.0,0.0001589,2]
[361040479,1747210236756,-1152.21,0.0001589,2]
[361040480,1747210236767,-400.0,0.0001589,2]
[361040481,1747210236780,-467.21,0.0001589,2]
[361040482,1747210236790,-463.86,0.0001589,2]
[361040483,1747210236800,-423.41,0.0001589,2]
[361040484,1747210236811,-400.0,0.0001589,2]
[361040485,1747210236820,-626.17,0.0001589,2]
[361040486,1747210236830,-400.0,0.0001589,2]
[361040487,1747210236840,-400.0,0.0001589,2]
[361040488,1747210236850,-400.0,0.0001589,2]
[361040489,1747210236862,-400.0,0.0001589,2]
[361040490,1747210236875,-1989.37,0.0001589,2]
[361040491,1747210236885,-400.0,0.0001589,2]
[361040492,1747210236895,-209.26,0.0001589,2]
[361040493,1747210236904,-400.0,0.0001589,2]
[361040494,1747210236915,-1978.58,0.0001589,2]
[361040495,1747210236925,-618.56,0.0001589,2]
[361040496,1747210236935,-1000.0,0.00015991,2]
[361040497,1747210236945,-250.0,0.00016003,2]
[361040498,1747210236955,-7096.96413682,0.00016003,2]
[361040499,1747210236965,-1500.0,0.00016019,2]
[361040500,1747210236975,-619.50579225,0.00016019,2]
[361040501,1747210236985,-1500.0,0.00016096,2]
[361040502,1747210236996,-1327.63,0.00016164,2]
[361040503,1747210237007,-400.0,0.00016164,2]
[361040504,1747210237018,-400.0,0.00016164,2]
[361040505,1747210237029,-400.0,0.00016164,2]
[361040506,1747210237040,-1152.21,0.00016164,2]
[361040507,1747210237052,-400.0,0.00016164,2]
[361040508,1747210237064,-467.21,0.00016164,2]
[361040509,1747210237075,-463.86,0.00016164,2]
[361040510,1747210237087,-400.0,0.00016164,2]
[361040511,1747210237098,-151.0,0.00016164,2]
[361040512,1747210237142,-626.17,0.00016164,2]
[361040513,1747210237153,-324.99,0.00016164,2]
[361040514,1747210237163,-400.0,0.00016164,2]
[361040515,1747210237174,-400.0,0.00016164,2]
[361040516,1747210237184,-400.0,0.00016164,2]
[361040517,1747210237195,-1989.37,0.00016164,2]
[361040518,1747210237205,-400.0,0.00016164,2]
[361040519,1747210237215,-400.0,0.00016164,2]
[361040520,1747210237226,-1978.58,0.00016164,2]
[361040521,1747210237237,-618.56,0.00016164,2]
[361040522,1747210237247,-823.0,0.0001617,2]
[361040523,1747210237258,-694.17791944,0.00016304,2]
[361040524,1747210237268,-207.4,0.00016313,2]
[361040525,1747210237278,-500.0,0.00016438,2]
[361040526,1747210237289,-500.0,0.00016438,2]
[361040527,1747210237299,-500.0,0.00016438,2]
[361040528,1747210237309,-500.0,0.00016438,2]
[361040529,1747210237320,-500.0,0.00016438,2]
[361040530,1747210237330,-500.0,0.00016438,2]
[361040531,1747210237340,-569.6796752,0.00016438,2]
[361040532,1747210237351,-1327.63,0.00016438,2]
[361040533,1747210237371,-400.0,0.00016438,2]
[361040534,1747210237380,-400.0,0.00016438,2]
[361040535,1747210237389,-400.0,0.00016438,2]
[361040536,1747210237399,-1152.21,0.00016438,2]
[361040537,1747210237410,-400.0,0.00016438,2]
[361040538,1747210237420,-467.21,0.00016438,2]